[Event "*** Titled Tuesday Blitz"]
[Site "Chess.com"]
[Date "2021.04.20"]
[Round "11"]
[White "JelenaKarleusa-SO-18"]
[Black "MMSANCHEZ"]
[Result "1-0"]
[WhiteElo "2677"]
[BlackElo "2549"]
[TimeControl "180+1"]
[EndTime "12:06:54 PDT"]
[Termination "JelenaKarleusa-SO-18 won on time"]

1. e4 {[%clk 0:03:00.9]} 1... e6 {[%clk 0:02:58.3]} 2. d4 {[%clk 0:03:00.5]}
2... d5 {[%clk 0:02:58.6]} 3. Nd2 {[%clk 0:03:01.2]} 3... c5 {[%clk 0:02:58.1]}
4. Ngf3 {[%clk 0:03:00.7]} 4... cxd4 {[%clk 0:02:57.7]} 5. exd5 {[%clk
0:03:00.6]} 5... Qxd5 {[%clk 0:02:57.7]} 6. Bc4 {[%clk 0:03:01.2]} 6... Qd7
{[%clk 0:02:57.6]} 7. O-O {[%clk 0:03:02.1]} 7... Nc6 {[%clk 0:02:57.2]} 8. Re1
{[%clk 0:03:01.7]} 8... Nf6 {[%clk 0:02:56.6]} 9. Nb3 {[%clk 0:03:02.1]} 9... a6
{[%clk 0:02:56.6]} 10. Nbxd4 {[%clk 0:03:02.3]} 10... Nxd4 {[%clk 0:02:57.2]}
11. Nxd4 {[%clk 0:03:00.9]} 11... Qc7 {[%clk 0:02:55]} 12. Bf1 {[%clk
0:03:00.8]} 12... Be7 {[%clk 0:02:54.1]} 13. Qf3 {[%clk 0:02:59.3]} 13... O-O
{[%clk 0:02:52.8]} 14. c4 {[%clk 0:02:59.5]} 14... Bd7 {[%clk 0:02:45]} 15. h3
{[%clk 0:02:56.9]} 15... Rfe8 {[%clk 0:02:44.1]} 16. Bf4 {[%clk 0:02:51.3]}
16... Qb6 {[%clk 0:02:38.9]} 17. Be5 {[%clk 0:02:51.2]} 17... Rad8 {[%clk
0:02:35]} 18. Rad1 {[%clk 0:02:47.7]} 18... Bc8 {[%clk 0:02:24.2]} 19. a3 {[%clk
0:02:39.6]} 19... Nd7 {[%clk 0:01:56.2]} 20. Bg3 {[%clk 0:02:19.5]} 20... Bf6
{[%clk 0:01:55]} 21. Nb3 {[%clk 0:02:12.2]} 21... Nc5 {[%clk 0:01:46.1]} 22.
Nxc5 {[%clk 0:02:07.2]} 22... Qxc5 {[%clk 0:01:46.4]} 23. b4 {[%clk 0:02:07.9]}
23... Qe7 {[%clk 0:01:25.4]} 24. c5 {[%clk 0:01:54.2]} 24... e5 {[%clk
0:01:19.6]} 25. Bc4 {[%clk 0:01:53]} 25... g6 {[%clk 0:01:11.5]} 26. Rxd8 {[%clk
0:01:38.7]} 26... Rxd8 {[%clk 0:01:06.8]} 27. Qe3 {[%clk 0:01:38.8]} 27... Re8
{[%clk 0:00:53.4]} 28. Bd5 {[%clk 0:01:29.6]} 28... Kg7 {[%clk 0:00:52.8]} 29.
a4 {[%clk 0:01:17.6]} 29... Bf5 {[%clk 0:00:45]} 30. a5 {[%clk 0:01:00.1]} 30...
h5 {[%clk 0:00:43]} 31. Be4 {[%clk 0:00:46.4]} 31... Bc8 {[%clk 0:00:35.9]} 32.
Rd1 {[%clk 0:00:46.1]} 32... Rd8 {[%clk 0:00:34.2]} 33. Rd5 {[%clk 0:00:43]}
33... Rxd5 {[%clk 0:00:25.2]} 34. Bxd5 {[%clk 0:00:43.9]} 34... Qd8 {[%clk
0:00:24.5]} 35. Qe4 {[%clk 0:00:41.7]} 35... Qe7 {[%clk 0:00:15.8]} 36. f3
{[%clk 0:00:39.4]} 36... Bf5 {[%clk 0:00:16]} 37. Qc4 {[%clk 0:00:36.5]} 37...
Qd7 {[%clk 0:00:14.7]} 38. Bf2 {[%clk 0:00:35.1]} 38... Qe7 {[%clk 0:00:13.1]}
39. g4 {[%clk 0:00:35.4]} 39... hxg4 {[%clk 0:00:13.2]} 40. hxg4 {[%clk
0:00:36.3]} 40... Bc8 {[%clk 0:00:13.5]} 41. Qe4 {[%clk 0:00:36.1]} 41... Bg5
{[%clk 0:00:12.6]} 42. Bg3 {[%clk 0:00:33.7]} 42... Bf6 {[%clk 0:00:12.1]} 43.
g5 {[%clk 0:00:32.7]} 43... Bxg5 {[%clk 0:00:12.5]} 44. Qxe5+ {[%clk 0:00:33.2]}
44... Qxe5 {[%clk 0:00:12.9]} 45. Bxe5+ {[%clk 0:00:34.1]} 45... Bf6 {[%clk
0:00:13.6]} 46. Bd6 {[%clk 0:00:28.3]} 46... Bc3 {[%clk 0:00:13.4]} 47. c6
{[%clk 0:00:28.8]} 47... bxc6 {[%clk 0:00:12.5]} 48. Bxc6 {[%clk 0:00:29.7]}
48... Kf6 {[%clk 0:00:12.7]} 49. Kf2 {[%clk 0:00:29.8]} 49... Ke6 {[%clk
0:00:12.4]} 50. Bc5 {[%clk 0:00:29.9]} 50... Be5 {[%clk 0:00:10.6]} 51. Ke3
{[%clk 0:00:29.9]} 51... Bd6 {[%clk 0:00:10.7]} 52. Kd4 {[%clk 0:00:29.7]} 52...
Be5+ {[%clk 0:00:09.7]} 53. Kc4 {[%clk 0:00:29.5]} 53... f5 {[%clk 0:00:10.3]}
54. b5 {[%clk 0:00:27.9]} 54... axb5+ {[%clk 0:00:10.2]} 55. Kxb5 {[%clk
0:00:28.7]} 55... g5 {[%clk 0:00:10.7]} 56. Kb6 {[%clk 0:00:19.5]} 56... Bb8
{[%clk 0:00:08.5]} 57. Bb7 {[%clk 0:00:19.3]} 57... Bd7 {[%clk 0:00:08.9]} 58.
a6 {[%clk 0:00:19.3]} 58... f4 {[%clk 0:00:08.1]} 59. Be4 {[%clk 0:00:14.5]}
59... Bc8 {[%clk 0:00:05.5]} 60. Bb7 {[%clk 0:00:14.1]} 60... Bd7 {[%clk
0:00:05.6]} 61. Bf2 {[%clk 0:00:14.5]} 61... Kf5 {[%clk 0:00:04.6]} 62. Be4+
{[%clk 0:00:13.6]} 62... Ke6 {[%clk 0:00:04.5]} 63. Kb7 {[%clk 0:00:14.5]} 63...
Bd6 {[%clk 0:00:02.4]} 64. a7 {[%clk 0:00:15]} 64... g4 {[%clk 0:00:03.2]} 65.
fxg4 {[%clk 0:00:14.9]} 1-0

[Event "*** Titled Tuesday Blitz"]
[Site "Chess.com"]
[Date "2021.04.20"]
[Round "11"]
[White "Kislov_Oleg"]
[Black "noblerone"]
[Result "1-0"]
[WhiteElo "2490"]
[BlackElo "2389"]
[TimeControl "180+1"]
[EndTime "12:06:58 PDT"]
[Termination "Kislov_Oleg won by resignation"]

1. d4 {[%clk 0:03:00.9]} 1... d5 {[%clk 0:02:58.8]} 2. Nc3 {[%clk 0:03:01.1]}
2... Nf6 {[%clk 0:02:58.6]} 3. Bg5 {[%clk 0:03:01.7]} 3... Ne4 {[%clk
0:02:57.8]} 4. Nxe4 {[%clk 0:03:01.6]} 4... dxe4 {[%clk 0:02:58.7]} 5. f3 {[%clk
0:02:57.1]} 5... Bf5 {[%clk 0:02:54.1]} 6. Qd2 {[%clk 0:02:53.1]} 6... c6 {[%clk
0:02:36]} 7. fxe4 {[%clk 0:02:45.5]} 7... Bxe4 {[%clk 0:02:34.9]} 8. Nf3 {[%clk
0:02:45.4]} 8... Qb6 {[%clk 0:02:31]} 9. O-O-O {[%clk 0:02:42.6]} 9... Nd7
{[%clk 0:02:17.4]} 10. e3 {[%clk 0:02:39]} 10... h6 {[%clk 0:02:16.3]} 11. Bf4
{[%clk 0:02:38.1]} 11... g5 {[%clk 0:02:14.7]} 12. Bg3 {[%clk 0:02:38]} 12...
Bg7 {[%clk 0:02:12.6]} 13. Bd3 {[%clk 0:02:38]} 13... Nf6 {[%clk 0:02:06.1]} 14.
Be5 {[%clk 0:02:35.8]} 14... Bxd3 {[%clk 0:02:00.3]} 15. Qxd3 {[%clk 0:02:34.9]}
15... Qa5 {[%clk 0:01:53.8]} 16. Kb1 {[%clk 0:02:33.8]} 16... Rd8 {[%clk
0:01:49.4]} 17. h4 {[%clk 0:02:24.1]} 17... g4 {[%clk 0:01:45.4]} 18. Nd2 {[%clk
0:02:21.8]} 18... Nh5 {[%clk 0:01:37.5]} 19. Nc4 {[%clk 0:02:14.9]} 19... Qd5
{[%clk 0:01:30.4]} 20. e4 {[%clk 0:02:13.4]} 20... Qd7 {[%clk 0:01:26.5]} 21.
Bxg7 {[%clk 0:02:12.8]} 21... Nxg7 {[%clk 0:01:27.4]} 22. Ne5 {[%clk 0:02:13.4]}
22... Qe6 {[%clk 0:01:27.6]} 23. Rhf1 {[%clk 0:02:11.1]} 23... O-O {[%clk
0:01:26.6]} 24. Qg3 {[%clk 0:02:05.5]} 24... h5 {[%clk 0:01:06.4]} 25. c3 {[%clk
0:02:05]} 25... f5 {[%clk 0:01:00.6]} 26. exf5 {[%clk 0:01:52]} 26... Rxf5
{[%clk 0:00:59.6]} 27. Rxf5 {[%clk 0:01:42.1]} 27... Qxf5+ {[%clk 0:01:00.5]}
28. Qd3 {[%clk 0:01:38.1]} 28... Qxd3+ {[%clk 0:00:54]} 29. Nxd3 {[%clk
0:01:37.3]} 29... Nf5 {[%clk 0:00:54.5]} 30. Re1 {[%clk 0:01:29.2]} 30... Nxh4
{[%clk 0:00:48.2]} 31. Nf4 {[%clk 0:01:20.7]} 31... Rf8 {[%clk 0:00:40.8]} 32.
g3 {[%clk 0:01:14.9]} 32... Nf5 {[%clk 0:00:40.2]} 33. Nxh5 {[%clk 0:01:13.9]}
33... Kh7 {[%clk 0:00:34.8]} 34. Rh1 {[%clk 0:01:05.1]} 34... Kg6 {[%clk
0:00:32.3]} 35. Nf4+ {[%clk 0:01:05.3]} 35... Kf7 {[%clk 0:00:29.9]} 36. Ne2
{[%clk 0:01:01.9]} 36... Kg7 {[%clk 0:00:27.8]} 37. Kc2 {[%clk 0:01:01.2]} 37...
Rh8 {[%clk 0:00:27]} 38. Rxh8 {[%clk 0:01:01.4]} 38... Kxh8 {[%clk 0:00:27.9]}
39. Kd3 {[%clk 0:01:01.6]} 39... Kg7 {[%clk 0:00:27.8]} 40. Ke4 {[%clk
0:01:02.3]} 40... Kf6 {[%clk 0:00:28]} 41. Kf4 {[%clk 0:01:01.1]} 41... Nh6
{[%clk 0:00:26.9]} 42. Nc1 {[%clk 0:00:57.7]} 42... b6 {[%clk 0:00:24.8]} 43.
Nd3 {[%clk 0:00:57.6]} 43... Nf7 {[%clk 0:00:22.6]} 44. Kxg4 {[%clk 0:00:54.8]}
44... Nd6 {[%clk 0:00:22.6]} 45. Kf4 {[%clk 0:00:50.3]} 45... Nc4 {[%clk
0:00:21.7]} 46. g4 {[%clk 0:00:50.5]} 46... a5 {[%clk 0:00:17.3]} 47. g5+ {[%clk
0:00:50.6]} 47... Kg7 {[%clk 0:00:17]} 48. Kf5 {[%clk 0:00:47.8]} 48... b5
{[%clk 0:00:17.6]} 49. Ke6 {[%clk 0:00:47.5]} 49... Kg6 {[%clk 0:00:17]} 50.
Kxe7 {[%clk 0:00:46.7]} 50... Kxg5 {[%clk 0:00:17.6]} 51. Kd7 {[%clk 0:00:46.2]}
51... Kf5 {[%clk 0:00:16.3]} 52. Kxc6 {[%clk 0:00:44.5]} 52... b4 {[%clk
0:00:14.9]} 53. Kb5 {[%clk 0:00:37.9]} 53... Nxb2 {[%clk 0:00:11]} 54. Nxb2
{[%clk 0:00:28.3]} 54... bxc3 {[%clk 0:00:11.1]} 55. Nd1 {[%clk 0:00:25.9]}
55... Ke4 {[%clk 0:00:09]} 56. Nxc3+ {[%clk 0:00:25.1]} 56... Kxd4 {[%clk
0:00:09.7]} 57. Nb1 {[%clk 0:00:21.7]} 57... a4 {[%clk 0:00:08.1]} 58. Kxa4
{[%clk 0:00:21.3]} 58... Kc4 {[%clk 0:00:08.6]} 59. Ka5 {[%clk 0:00:19.3]} 59...
Kc5 {[%clk 0:00:07.9]} 60. a4 {[%clk 0:00:19.5]} 60... Kc6 {[%clk 0:00:07.4]}
61. Kb4 {[%clk 0:00:18.6]} 61... Kb6 {[%clk 0:00:08]} 62. a5+ {[%clk 0:00:19.1]}
62... Ka6 {[%clk 0:00:08.9]} 63. Nc3 {[%clk 0:00:19.5]} 63... Kb7 {[%clk
0:00:09.8]} 64. Kb5 {[%clk 0:00:19.9]} 64... Ka7 {[%clk 0:00:10.7]} 65. a6
{[%clk 0:00:20.8]} 65... Kb8 {[%clk 0:00:10.9]} 66. Kb6 {[%clk 0:00:20.9]} 66...
Ka8 {[%clk 0:00:11.8]} 67. Nb5 {[%clk 0:00:21.2]} 67... Kb8 {[%clk 0:00:12.6]}
68. a7+ {[%clk 0:00:21.8]} 68... Kc8 {[%clk 0:00:12.2]} 69. a8=Q+ {[%clk
0:00:20.8]} 69... Kd7 {[%clk 0:00:13.1]} 1-0

[Event "*** Titled Tuesday Blitz"]
[Site "Chess.com"]
[Date "2021.04.20"]
[Round "11"]
[White "elextranjero00"]
[Black "davigator"]
[Result "1-0"]
[WhiteElo "2572"]
[BlackElo "2445"]
[TimeControl "180+1"]
[EndTime "12:07:05 PDT"]
[Termination "elextranjero00 won on time"]

1. c4 {[%clk 0:03:00.9]} 1... e5 {[%clk 0:02:58.8]} 2. Nc3 {[%clk 0:03:00.4]}
2... Bb4 {[%clk 0:02:58.6]} 3. Nd5 {[%clk 0:02:58.4]} 3... Bc5 {[%clk
0:02:58.4]} 4. b4 {[%clk 0:02:57.3]} 4... Bf8 {[%clk 0:02:57.5]} 5. Bb2 {[%clk
0:02:56.8]} 5... c6 {[%clk 0:02:56.1]} 6. Ne3 {[%clk 0:02:57.4]} 6... f6 {[%clk
0:02:46.2]} 7. c5 {[%clk 0:02:44.3]} 7... d6 {[%clk 0:02:39.6]} 8. cxd6 {[%clk
0:02:29.1]} 8... Bxd6 {[%clk 0:02:36.6]} 9. a3 {[%clk 0:02:25.4]} 9... c5 {[%clk
0:02:31.4]} 10. g3 {[%clk 0:02:11.6]} 10... Nc6 {[%clk 0:02:25.9]} 11. Bg2
{[%clk 0:02:05.8]} 11... Nge7 {[%clk 0:02:21.9]} 12. bxc5 {[%clk 0:02:02.4]}
12... Bxc5 {[%clk 0:02:21.3]} 13. Rc1 {[%clk 0:01:44.4]} 13... Bd4 {[%clk
0:02:16.5]} 14. Qb3 {[%clk 0:01:39.3]} 14... Qd6 {[%clk 0:02:08.1]} 15. Nc4
{[%clk 0:01:32.8]} 15... Qe6 {[%clk 0:01:58.6]} 16. Nf3 {[%clk 0:01:17.7]} 16...
Bxb2 {[%clk 0:01:57.3]} 17. Qxb2 {[%clk 0:01:18.6]} 17... O-O {[%clk 0:01:56.8]}
18. d3 {[%clk 0:01:14]} 18... Rd8 {[%clk 0:01:52.5]} 19. O-O {[%clk 0:01:13.6]}
19... Nf5 {[%clk 0:01:39.3]} 20. Rfe1 {[%clk 0:01:10.9]} 20... Rb8 {[%clk
0:01:31.7]} 21. Nfd2 {[%clk 0:01:03.4]} 21... Bd7 {[%clk 0:01:25.2]} 22. Ne4
{[%clk 0:01:00.3]} 22... Qe7 {[%clk 0:01:18.8]} 23. Nc3 {[%clk 0:00:57.4]} 23...
Be6 {[%clk 0:01:16.2]} 24. Nd2 {[%clk 0:00:51.8]} 24... Kh8 {[%clk 0:01:02.7]}
25. Nce4 {[%clk 0:00:42.3]} 25... Nfd4 {[%clk 0:00:33.7]} 26. Nc5 {[%clk
0:00:32.7]} 26... Bd5 {[%clk 0:00:33.8]} 27. Bxd5 {[%clk 0:00:27.9]} 27... Rxd5
{[%clk 0:00:33.6]} 28. Nce4 {[%clk 0:00:28.5]} 28... Rdd8 {[%clk 0:00:32.7]} 29.
Nc4 {[%clk 0:00:26.5]} 29... h6 {[%clk 0:00:29]} 30. Ne3 {[%clk 0:00:24.4]}
30... Kh7 {[%clk 0:00:28.5]} 31. Rc4 {[%clk 0:00:17.2]} 31... Rbc8 {[%clk
0:00:27.5]} 32. Rec1 {[%clk 0:00:15.2]} 32... Qf7 {[%clk 0:00:23.3]} 33. f3
{[%clk 0:00:13.3]} 33... b6 {[%clk 0:00:20.2]} 34. Kf2 {[%clk 0:00:05.4]} 34...
Ne7 {[%clk 0:00:20.2]} 35. Rxc8 {[%clk 0:00:04.8]} 35... Nxc8 {[%clk 0:00:20.3]}
36. Nd2 {[%clk 0:00:03.7]} 36... Nd6 {[%clk 0:00:20.1]} 37. h4 {[%clk
0:00:03.8]} 37... f5 {[%clk 0:00:18.6]} 38. Nec4 {[%clk 0:00:03.1]} 38... Qd5
{[%clk 0:00:17.7]} 39. Nxd6 {[%clk 0:00:03]} 39... Qxd6 {[%clk 0:00:17.6]} 40.
Nc4 {[%clk 0:00:03.6]} 40... Qd5 {[%clk 0:00:16.7]} 41. Qd2 {[%clk 0:00:03.6]}
41... e4 {[%clk 0:00:16.5]} 42. f4 {[%clk 0:00:03.7]} 42... Re8 {[%clk
0:00:15.3]} 43. e3 {[%clk 0:00:03.6]} 43... Nf3 {[%clk 0:00:14]} 44. Qe2 {[%clk
0:00:04.2]} 44... Qd8 {[%clk 0:00:10.9]} 45. d4 {[%clk 0:00:04.2]} 45... Nxh4
{[%clk 0:00:10.1]} 46. Ne5 {[%clk 0:00:02]} 46... Nf3 {[%clk 0:00:07.7]} 47. Rh1
{[%clk 0:00:02.6]} 47... Nxe5 {[%clk 0:00:07.1]} 48. fxe5 {[%clk 0:00:03.5]}
48... Qd5 {[%clk 0:00:06.9]} 49. Qh5 {[%clk 0:00:03.4]} 49... Re6 {[%clk
0:00:06.7]} 50. Qxf5+ {[%clk 0:00:03.3]} 50... Rg6 {[%clk 0:00:06.8]} 51. Kg2
{[%clk 0:00:03.7]} 51... Qa2+ {[%clk 0:00:06.6]} 52. Kh3 {[%clk 0:00:03.2]}
52... Qe2 {[%clk 0:00:04.9]} 53. Rf1 {[%clk 0:00:02.9]} 53... h5 {[%clk
0:00:03.1]} 54. e6 {[%clk 0:00:02.9]} 54... Qg4+ {[%clk 0:00:01.7]} 55. Qxg4
{[%clk 0:00:03.4]} 55... hxg4+ {[%clk 0:00:02.4]} 56. Kh4 {[%clk 0:00:04.1]}
56... Rxe6 {[%clk 0:00:03.1]} 57. Kxg4 {[%clk 0:00:04.5]} 57... Rd6 {[%clk
0:00:03]} 58. Rf4 {[%clk 0:00:05]} 58... Re6 {[%clk 0:00:02.7]} 59. Kf5 {[%clk
0:00:05.4]} 59... Re7 {[%clk 0:00:02.3]} 60. Rxe4 {[%clk 0:00:06]} 60... Rf7+
{[%clk 0:00:03]} 61. Ke6 {[%clk 0:00:06]} 61... Rf3 {[%clk 0:00:02.4]} 62. g4
{[%clk 0:00:06.2]} 62... Rf2 {[%clk 0:00:02]} 63. d5 {[%clk 0:00:06.7]} 1-0

[Event "*** Titled Tuesday Blitz"]
[Site "Chess.com"]
[Date "2021.04.20"]
[Round "11"]
[White "KuzubovYuriy"]
[Black "Kobalia"]
[Result "0-1"]
[WhiteElo "2864"]
[BlackElo "2795"]
[TimeControl "180+1"]
[EndTime "12:07:08 PDT"]
[Termination "Kobalia won on time"]

1. d4 {[%clk 0:03:00.9]} 1... d5 {[%clk 0:02:59.5]} 2. c4 {[%clk 0:03:00.5]}
2... c6 {[%clk 0:02:59.9]} 3. Nf3 {[%clk 0:03:01]} 3... Nf6 {[%clk 0:02:59.4]}
4. Nc3 {[%clk 0:03:01.6]} 4... e6 {[%clk 0:02:59]} 5. e3 {[%clk 0:03:01.1]} 5...
Nbd7 {[%clk 0:02:56.4]} 6. Be2 {[%clk 0:02:59.2]} 6... Bd6 {[%clk 0:02:56]} 7.
b3 {[%clk 0:02:58.9]} 7... O-O {[%clk 0:02:52.6]} 8. Bb2 {[%clk 0:02:58.9]} 8...
b6 {[%clk 0:02:52.8]} 9. O-O {[%clk 0:02:58.3]} 9... Bb7 {[%clk 0:02:52.9]} 10.
Qc2 {[%clk 0:02:57.9]} 10... Qe7 {[%clk 0:02:47.1]} 11. Rad1 {[%clk 0:02:55.3]}
11... Rad8 {[%clk 0:02:46.5]} 12. Rfe1 {[%clk 0:02:44.6]} 12... Rfe8 {[%clk
0:02:43.9]} 13. e4 {[%clk 0:02:22.5]} 13... dxe4 {[%clk 0:02:43.3]} 14. Nxe4
{[%clk 0:02:23.4]} 14... Nxe4 {[%clk 0:02:43.2]} 15. Qxe4 {[%clk 0:02:22.4]}
15... Bb4 {[%clk 0:02:43.3]} 16. Rf1 {[%clk 0:02:17.7]} 16... Nf6 {[%clk
0:02:43]} 17. Qh4 {[%clk 0:02:12]} 17... Ba3 {[%clk 0:02:43.2]} 18. Ba1 {[%clk
0:02:02.2]} 18... c5 {[%clk 0:02:43.1]} 19. Ne5 {[%clk 0:01:41]} 19... cxd4
{[%clk 0:02:38.5]} 20. Rxd4 {[%clk 0:01:39]} 20... Rxd4 {[%clk 0:02:36.4]} 21.
Bxd4 {[%clk 0:01:38.3]} 21... Rd8 {[%clk 0:02:29]} 22. Rd1 {[%clk 0:01:34.6]}
22... Ne4 {[%clk 0:02:18.2]} 23. Qxe7 {[%clk 0:01:24.3]} 23... Bxe7 {[%clk
0:02:19.1]} 24. Bb2 {[%clk 0:01:11.5]} 24... Rxd1+ {[%clk 0:02:10.9]} 25. Bxd1
{[%clk 0:01:12.4]} 25... f6 {[%clk 0:02:10.8]} 26. Nd3 {[%clk 0:01:11.9]} 26...
e5 {[%clk 0:02:05.6]} 27. f3 {[%clk 0:01:04.9]} 27... Nc5 {[%clk 0:02:05.5]} 28.
Nf2 {[%clk 0:00:52.1]} 28... Kf7 {[%clk 0:02:01.8]} 29. Bc2 {[%clk 0:00:51.3]}
29... g6 {[%clk 0:02:00.9]} 30. b4 {[%clk 0:00:47]} 30... Ne6 {[%clk 0:01:57.7]}
31. Bc3 {[%clk 0:00:42.8]} 31... Nd4 {[%clk 0:01:55]} 32. Bxd4 {[%clk
0:00:40.3]} 32... exd4 {[%clk 0:01:54.6]} 33. Nd3 {[%clk 0:00:39.5]} 33... a5
{[%clk 0:01:52.8]} 34. bxa5 {[%clk 0:00:34.2]} 34... bxa5 {[%clk 0:01:51.9]} 35.
Ba4 {[%clk 0:00:34.8]} 35... Bc8 {[%clk 0:01:46]} 36. Kf2 {[%clk 0:00:24.7]}
36... h5 {[%clk 0:01:37.5]} 37. Bc6 {[%clk 0:00:21.6]} 37... Bd6 {[%clk
0:01:37]} 38. h3 {[%clk 0:00:18.2]} 38... h4 {[%clk 0:01:34]} 39. Bd5+ {[%clk
0:00:16.5]} 39... Ke7 {[%clk 0:01:33.4]} 40. Ke2 {[%clk 0:00:17]} 40... g5
{[%clk 0:01:29.8]} 41. Ne1 {[%clk 0:00:13.3]} 41... Be5 {[%clk 0:01:15.6]} 42.
Kd3 {[%clk 0:00:09.6]} 42... Kd6 {[%clk 0:01:15.1]} 43. Ke4 {[%clk 0:00:08.6]}
43... f5+ {[%clk 0:01:10.8]} 44. Kd3 {[%clk 0:00:08.5]} 44... Bd7 {[%clk
0:00:50.1]} 45. Ke2 {[%clk 0:00:05.1]} 45... Bg3 {[%clk 0:00:47.7]} 46. Nd3
{[%clk 0:00:05]} 46... Bf4 {[%clk 0:00:39.6]} 47. Bg8 {[%clk 0:00:04.5]} 47...
Bc8 {[%clk 0:00:34.4]} 48. Bf7 {[%clk 0:00:04]} 48... Be3 {[%clk 0:00:34.3]} 49.
Kd1 {[%clk 0:00:03.2]} 49... g4 {[%clk 0:00:32.9]} 50. fxg4 {[%clk 0:00:01.2]}
50... fxg4 {[%clk 0:00:33.1]} 51. hxg4 {[%clk 0:00:01.7]} 51... Bxg4+ {[%clk
0:00:33.1]} 52. Kc2 {[%clk 0:00:01.4]} 52... Bf5 {[%clk 0:00:30.4]} 53. Bd5
{[%clk 0:00:01.5]} 53... Bg6 {[%clk 0:00:30]} 54. Bf3 {[%clk 0:00:01.6]} 54...
a4 {[%clk 0:00:23.7]} 55. Bd5 {[%clk 0:00:01.5]} 55... Bf5 {[%clk 0:00:22.8]}
56. Bf3 {[%clk 0:00:01.7]} 56... a3 {[%clk 0:00:21.1]} 57. c5+ {[%clk
0:00:01.7]} 57... Kc7 {[%clk 0:00:20.4]} 58. Bd5 {[%clk 0:00:01.6]} 58... Bg6
{[%clk 0:00:19.4]} 59. Bf3 {[%clk 0:00:01.7]} 59... Kb8 {[%clk 0:00:19.4]} 60.
Bd5 {[%clk 0:00:01.4]} 60... Ka7 {[%clk 0:00:18.8]} 61. c6 {[%clk 0:00:01.4]}
61... Kb6 {[%clk 0:00:18.4]} 62. Bf3 {[%clk 0:00:01.4]} 62... Bf5 {[%clk
0:00:17.6]} 0-1

[Event "*** Titled Tuesday Blitz"]
[Site "Chess.com"]
[Date "2021.04.20"]
[Round "11"]
[White "HouseOfDurin"]
[Black "WiktoriaPOL"]
[Result "1-0"]
[WhiteElo "2130"]
[BlackElo "2047"]
[TimeControl "180+1"]
[EndTime "12:07:14 PDT"]
[Termination "HouseOfDurin won by checkmate"]

1. d4 {[%clk 0:03:00.9]} 1... d5 {[%clk 0:02:58.2]} 2. Bg5 {[%clk 0:03:01.3]}
2... h6 {[%clk 0:02:52.4]} 3. Bh4 {[%clk 0:03:01.3]} 3... g5 {[%clk 0:02:48.6]}
4. Bg3 {[%clk 0:03:01.3]} 4... Bg7 {[%clk 0:02:49.2]} 5. e3 {[%clk 0:03:01.2]}
5... Nf6 {[%clk 0:02:48.8]} 6. Bd3 {[%clk 0:02:56.2]} 6... Ne4 {[%clk
0:02:47.1]} 7. Bxe4 {[%clk 0:02:55.3]} 7... dxe4 {[%clk 0:02:45.4]} 8. c4 {[%clk
0:02:54.9]} 8... O-O {[%clk 0:02:43.7]} 9. Nc3 {[%clk 0:02:55.2]} 9... f5 {[%clk
0:02:39.8]} 10. f3 {[%clk 0:02:43.9]} 10... f4 {[%clk 0:02:36.7]} 11. Bf2 {[%clk
0:02:42.9]} 11... fxe3 {[%clk 0:02:35.5]} 12. Bxe3 {[%clk 0:02:43.3]} 12... exf3
{[%clk 0:02:35]} 13. Nxf3 {[%clk 0:02:44.2]} 13... e5 {[%clk 0:02:31.8]} 14.
Nxe5 {[%clk 0:02:39]} 14... Bxe5 {[%clk 0:02:24.3]} 15. dxe5 {[%clk 0:02:39.9]}
15... Qe7 {[%clk 0:02:24.1]} 16. Qd5+ {[%clk 0:02:12.8]} 16... Be6 {[%clk
0:02:20.3]} 17. Qxb7 {[%clk 0:02:12.6]} 17... Nd7 {[%clk 0:02:19.5]} 18. O-O-O
{[%clk 0:02:09.8]} 18... Rab8 {[%clk 0:02:15]} 19. Qxc7 {[%clk 0:02:02.2]} 19...
Rfc8 {[%clk 0:02:12.9]} 20. Qd6 {[%clk 0:02:01.2]} 20... Qxd6 {[%clk 0:02:08.1]}
21. Rxd6 {[%clk 0:01:59.7]} 21... Bf5 {[%clk 0:02:03]} 22. Bxa7 {[%clk
0:01:53.5]} 22... Ra8 {[%clk 0:02:01.3]} 23. Bd4 {[%clk 0:01:53.3]} 23... Rxc4
{[%clk 0:02:00.4]} 24. e6 {[%clk 0:01:45.6]} 24... Nc5 {[%clk 0:01:58]} 25. Rd5
{[%clk 0:01:32.7]} 25... Nd3+ {[%clk 0:01:56.4]} 26. Kd2 {[%clk 0:01:33.2]}
26... Bxe6 {[%clk 0:01:48.8]} 27. Kxd3 {[%clk 0:01:10]} 27... Bxd5 {[%clk
0:01:47.5]} 28. Nxd5 {[%clk 0:01:10.9]} 28... Raa4 {[%clk 0:01:33]} 29. Bc3
{[%clk 0:01:03.4]} 29... Rh4 {[%clk 0:01:24.4]} 30. g3 {[%clk 0:00:58.4]} 30...
Rh3 {[%clk 0:01:22.4]} 31. Nf6+ {[%clk 0:00:50.7]} 31... Kf7 {[%clk 0:01:21.5]}
32. Ne4 {[%clk 0:00:51.3]} 32... g4 {[%clk 0:01:18.9]} 33. Rf1+ {[%clk
0:00:48.6]} 33... Ke7 {[%clk 0:01:17.9]} 34. Rf2 {[%clk 0:00:47]} 34... Rxa2
{[%clk 0:01:15.8]} 35. Nf6 {[%clk 0:00:42]} 35... Ra6 {[%clk 0:01:09.7]} 36.
Nxg4 {[%clk 0:00:39.5]} 36... h5 {[%clk 0:01:09.4]} 37. Ne3 {[%clk 0:00:26.2]}
37... h4 {[%clk 0:01:00.7]} 38. Nd5+ {[%clk 0:00:21.7]} 38... Kd8 {[%clk
0:00:55.2]} 39. Nf4 {[%clk 0:00:20.5]} 39... hxg3 {[%clk 0:00:54]} 40. Nxh3
{[%clk 0:00:21]} 40... gxf2 {[%clk 0:00:53.7]} 41. Nxf2 {[%clk 0:00:21.9]} 41...
Rh6 {[%clk 0:00:51.7]} 42. Be5 {[%clk 0:00:20.1]} 42... Ke7 {[%clk 0:00:44.4]}
43. Ke4 {[%clk 0:00:20.5]} 43... Rh4+ {[%clk 0:00:43.5]} 44. Bf4 {[%clk
0:00:17.5]} 44... Ke6 {[%clk 0:00:43.4]} 45. Nd3 {[%clk 0:00:14]} 45... Rh8
{[%clk 0:00:39.6]} 46. b4 {[%clk 0:00:14.4]} 46... Rc8 {[%clk 0:00:32.8]} 47.
Nc5+ {[%clk 0:00:13.5]} 47... Kf6 {[%clk 0:00:32]} 48. Kd4 {[%clk 0:00:12.5]}
48... Kf5 {[%clk 0:00:31.2]} 49. Bg3 {[%clk 0:00:12.3]} 49... Rd8+ {[%clk
0:00:26.7]} 50. Kc4 {[%clk 0:00:12.2]} 50... Rd1 {[%clk 0:00:18.9]} 51. b5
{[%clk 0:00:11.2]} 51... Rc1+ {[%clk 0:00:19]} 52. Kd5 {[%clk 0:00:10.9]} 52...
Rd1+ {[%clk 0:00:18.6]} 53. Kc6 {[%clk 0:00:11.4]} 53... Rc1 {[%clk 0:00:17.7]}
54. b6 {[%clk 0:00:11.8]} 54... Rb1 {[%clk 0:00:16.1]} 55. b7 {[%clk 0:00:11.8]}
55... Kg4 {[%clk 0:00:14.1]} 56. b8=Q {[%clk 0:00:12]} 56... Rxb8 {[%clk
0:00:14]} 57. Bxb8 {[%clk 0:00:12.6]} 57... Kh3 {[%clk 0:00:14.6]} 58. Bg3
{[%clk 0:00:12.9]} 58... Kg2 {[%clk 0:00:14.6]} 59. Kd5 {[%clk 0:00:13.8]} 59...
Kh3 {[%clk 0:00:15]} 60. Ke5 {[%clk 0:00:14.1]} 60... Kg4 {[%clk 0:00:14.9]} 61.
Ke4 {[%clk 0:00:13.8]} 61... Kh3 {[%clk 0:00:15.1]} 62. Ke3 {[%clk 0:00:13.8]}
62... Kg4 {[%clk 0:00:14.4]} 63. Kf2 {[%clk 0:00:13.9]} 63... Kh3 {[%clk
0:00:14.7]} 64. Nd3 {[%clk 0:00:13.5]} 64... Kg4 {[%clk 0:00:14.8]} 65. Kg2
{[%clk 0:00:13.7]} 65... Kh5 {[%clk 0:00:14.3]} 66. h4 {[%clk 0:00:14.4]} 66...
Kh6 {[%clk 0:00:14.3]} 67. Kh3 {[%clk 0:00:13.6]} 67... Kh5 {[%clk 0:00:14.9]}
68. Nf4+ {[%clk 0:00:12.9]} 68... Kh6 {[%clk 0:00:14.8]} 69. Kg4 {[%clk
0:00:13.8]} 69... Kh7 {[%clk 0:00:14.5]} 70. h5 {[%clk 0:00:14.7]} 70... Kh6
{[%clk 0:00:14.4]} 71. Bh4 {[%clk 0:00:15.6]} 71... Kh7 {[%clk 0:00:14.6]} 72.
Kg5 {[%clk 0:00:16.2]} 72... Kg7 {[%clk 0:00:14.5]} 73. h6+ {[%clk 0:00:16.9]}
73... Kh7 {[%clk 0:00:15]} 74. Kh5 {[%clk 0:00:17.1]} 74... Kh8 {[%clk
0:00:14.5]} 75. Kg6 {[%clk 0:00:17.6]} 75... Kg8 {[%clk 0:00:14.9]} 76. h7+
{[%clk 0:00:17.8]} 76... Kh8 {[%clk 0:00:15.4]} 77. Bf6# {[%clk 0:00:17.8]} 1-0